bitfinex/quotes_SOLUSD_20220226
["timestamp","ask_amount","ask_price","bid_price","bid_amount"]
[1645863899188,16.177,92.81,92.718,4.309]
[1645863899389,69.82815703,92.809,92.718,4.309]
[1645863899589,65.43,92.807,92.718,4.309]
[1645863899787,71.2256211,92.806,92.718,4.309]
[1645863899987,53.13664471,92.805,92.718,4.309]
[1645863900187,1.6072231,92.804,92.718,4.309]
[1645863900491,65.43,92.789,92.718,4.309]
[1645863900687,65.43,92.787,92.718,4.309]
[1645863900888,1.43815187,92.786,92.718,4.309]
[1645863901092,1.43815187,92.786,92.682,69.3808]
[1645863901487,1.43815187,92.786,92.683,2.31787395]
[1645863902109,16.1833,92.77,92.682,69.3808]
[1645863902310,49.91116215,92.769,92.682,69.3808]
[1645863902511,1.87182016,92.768,92.682,69.3808]
[1645863902713,1.87182016,92.768,92.677,113.0]
[1645863902910,1.7384945,92.767,92.677,113.0]
[1645863903413,48.10015392,92.769,92.643,19.84596271]
[1645863903414,16.1869,92.75,92.643,19.84596271]
[1645863903712,1.64170265,92.748,92.641,69.6114]
[1645863903913,1.64170265,92.748,92.641,24.1025]
[1645863904112,2.52378275,92.747,92.642,2.29306484]
[1645863904511,16.1929,92.72,92.641,24.1025]
[1645863904712,50.11514799,92.719,92.641,24.1025]
[1645863904911,1.71672255,92.718,92.641,24.1025]
[1645863905413,1.71672255,92.718,92.636,113.0]
[1645863906611,16.1952,92.7,92.636,113.0]
[1645863906911,60.87993012,92.699,92.636,113.0]
[1645863907112,60.87993012,92.699,92.62,16.1937]
[1645863907113,60.87993012,92.699,92.621,2.35180735]
[1645863907512,60.87993012,92.699,92.62,16.1937]
[1645863908112,60.87993012,92.699,92.621,2.67364544]
[1645863908514,60.87993012,92.699,92.62,16.1937]
[1645863909113,16.1967,92.69,92.62,16.1937]
[1645863909914,60.87993012,92.699,92.621,2.61606186]
[1645863910515,60.87993012,92.699,92.63,16.1935]
[1645863910817,60.87993012,92.699,92.631,2.51326444]
[1645863911516,12.95,92.75,92.631,2.51326444]
[1645863911517,1.56306292,92.773,92.641,109.3]
[1645863911715,5.0,92.825,92.642,2.78561395]
[1645863911716,4.315,92.772,92.642,2.78561395]
[1645863911917,4.314,92.787,92.643,109.3]
[1645863912118,4.314,92.797,92.667,113.0]
[1645863912319,42.69426964,92.803,92.681,109.3]
[1645863912516,42.69426964,92.803,92.7,16.1788]
[1645863912715,42.69426964,92.803,92.71,12.95]
[1645863913115,42.69426964,92.803,92.713,113.0]
[1645863913318,42.69426964,92.803,92.714,3.10053924]
[1645863913515,42.69426964,92.803,92.714,5.96346351]
[1645863913717,42.69426964,92.803,92.721,2.79026739]
[1645863914417,1.46339362,92.802,92.713,113.0]
[1645863914618,1.61587317,92.802,92.713,113.0]
[1645863915618,1.61587317,92.802,92.73,16.1758]
[1645863915821,1.61587317,92.802,92.713,113.0]
[1645863916426,2.51654434,92.801,92.713,113.0]
[1645863916622,4.16063408,92.801,92.713,113.0]
[1645863916820,4.16063408,92.801,92.69,29.1313]
[1645863917118,2.51654434,92.8,92.69,29.1313]
[1645863917719,65.43,92.784,92.674,2.86292427]
[1645863917920,65.43,92.774,92.673,113.0]
[1645863918118,5.75146108,92.773,92.674,2.81263288]
[1645863918323,1.58343216,92.782,92.674,2.81263288]
[1645863918822,58.45268159,92.783,92.675,2.86292427]
[1645863919422,65.43,92.782,92.68,16.1842]
[1645863919621,1.70188878,92.781,92.68,16.1842]
[1645863924829,174.73,92.774,92.661,2.86292427]
[1645863925032,1.42308071,92.773,92.661,2.86292427]
[1645863925729,65.43,92.772,92.661,2.86292427]
[1645863925931,1.48732647,92.771,92.661,2.86292427]
[1645863927931,1.48732647,92.771,92.68,5.394907]
[1645863930339,4.313,92.77,92.68,5.394907]
[1645863930537,174.73,92.768,92.68,5.394907]
[1645863930737,1.84771817,92.767,92.68,5.394907]
[1645863933237,109.3,92.765,92.68,5.394907]
[1645863933439,109.3,92.749,92.68,5.394907]
[1645863933639,174.73,92.744,92.68,5.394907]
[1645863933840,1.80233106,92.743,92.68,5.394907]
[1645863935542,47.253759,92.748,92.68,5.394907]
[1645863936744,47.253759,92.748,92.681,2.86292427]
[1645863937141,47.253759,92.748,92.68,5.394907]
[1645863937741,47.253759,92.748,92.681,2.86292427]
[1645863937941,47.253759,92.748,92.69,16.1829]
[1645863938344,4.314,92.793,92.691,2.37281281]
[1645863938546,1.63039477,92.807,92.691,5.23573708]
[1645863938745,1.63039477,92.807,92.692,2.86292427]
[1645863939148,4.312,92.806,92.692,2.86292427]
[1645863939347,1.8425895,92.804,92.692,2.86292427]
[1645863939544,5.7020207,92.803,92.7,16.18]
[1645863939756,65.43,92.802,92.7,16.18]
[1645863939947,4.312,92.801,92.7,16.18]
[1645863940148,65.43,92.8,92.7,16.18]
[1645863940348,65.43,92.798,92.7,16.18]
[1645863940550,65.43,92.796,92.7,16.18]
[1645863940748,174.73,92.794,92.7,16.18]
[1645863940949,174.73,92.792,92.7,16.18]
[1645863941149,65.43,92.79,92.682,2.86292427]
[1645863941350,1.41829262,92.789,92.682,2.86292427]
[1645863942450,1.41829262,92.789,92.69,16.1829]
[1645863943052,65.43,92.788,92.69,16.1829]
[1645863943283,65.43,92.784,92.69,16.1829]
[1645863943485,1.64826905,92.783,92.69,16.1829]
[1645863943883,1.64826905,92.783,92.682,2.86292427]
[1645863944084,1.64826905,92.783,92.681,46.6386]
[1645863944587,1.38822567,92.782,92.681,46.6386]
[1645863944983,65.43,92.778,92.681,46.6386]
[1645863945183,65.43,92.772,92.681,46.6386]
[1645863945382,109.3,92.765,92.681,46.6386]
[1645863945585,1.8676662,92.764,92.681,46.6386]
[1645863946588,109.3,92.767,92.681,46.6386]
[1645863946788,65.43,92.764,92.681,46.6386]
[1645863946987,1.65433543,92.763,92.681,46.6386]
[1645863947985,4.27239994,92.771,92.681,46.6386]
[1645863951190,1.7558556,92.771,92.681,46.6386]
[1645863952292,2.51654434,92.77,92.681,46.6386]
[1645863952492,1.49949823,92.768,92.681,46.6386]
[1645863952991,4.313,92.767,92.681,46.6386]
[1645863953192,174.73,92.766,92.67,16.1863]
[1645863953393,1.84696636,92.765,92.67,16.1863]
[1645863953793,4.314,92.764,92.662,2.86292427]
[1645863953994,65.43,92.763,92.652,2.86292427]
[1645863954195,65.43,92.761,92.652,2.86292427]
[1645863954394,65.43,92.759,92.652,5.16815678]
[1645863954595,65.43,92.757,92.652,5.16815678]
[1645863954799,1.87363196,92.756,92.652,5.16815678]
[1645863955196,1.87363196,92.756,92.653,2.86292427]
[1645863955496,1.87363196,92.756,92.66,16.1882]
[1645863955698,46.84121864,92.758,92.661,2.94628116]
[1645863956494,46.84121864,92.758,92.662,2.86292427]
[1645863956695,46.84121864,92.758,92.67,16.1864]
[1645863957397,46.84121864,92.758,92.671,2.33783878]
[1645863960100,174.73,92.755,92.671,2.33783878]
[1645863960299,174.73,92.755,92.662,2.86292427]
[1645863960300,1.63631312,92.754,92.662,2.86292427]
[1645863960602,65.43,92.751,92.638,38.07086997]
[1645863960802,65.43,92.751,92.619,4.314]
[1645863960803,176.08125252,92.749,92.619,4.314]
[1645863961002,4.315,92.748,92.594,3.0830457]
[1645863961200,4.315,92.748,92.588,113.0]
[1645863961201,5.0,92.735,92.588,113.0]
[1645863961406,174.73,92.709,92.59,16.1988]
[1645863961606,174.73,92.699,92.59,16.1988]
[1645863961807,65.43,92.689,92.591,56.82594567]
[1645863962004,65.43,92.687,92.591,56.82594567]
[1645863962201,46.84121864,92.688,92.591,56.82594567]
[1645863962202,65.43,92.685,92.591,56.82594567]
[1645863962406,1.5857101,92.684,92.591,56.82594567]
[1645863962603,65.43,92.679,92.591,56.82594567]
[1645863962906,1.68522046,92.676,92.591,56.82594567]
[1645863963111,15.55,92.68,92.591,56.82594567]
[1645863963303,4.317,92.679,92.591,56.82594567]
[1645863963504,15.55,92.68,92.591,56.82594567]
[1645863963703,69.747,92.679,92.591,56.82594567]
[1645863963904,1.657465,92.678,92.591,56.82594567]
[1645863964106,4.317,92.677,92.591,56.82594567]
[1645863964305,65.43,92.676,92.591,56.82594567]
[1645863964511,6.84112904,92.677,92.578,113.0]
[1645863964512,66.9713043,92.669,92.578,113.0]
[1645863964707,65.43,92.659,92.578,113.0]
[1645863964909,174.73,92.645,92.578,113.0]
[1645863965108,65.43,92.639,92.534,113.0]
[1645863965306,15.55,92.64,92.534,113.0]
[1645863965307,15.55,92.64,92.535,2.78004998]
[1645863965506,65.43,92.629,92.535,49.49158348]
[1645863965713,65.43,92.619,92.534,113.0]
[1645863965906,15.55,92.62,92.492,113.0]
[1645863965907,65.43,92.615,92.492,113.0]
[1645863966106,65.43,92.599,92.493,2.40338705]
[1645863966308,1.47652192,92.598,92.493,2.40338705]
[1645863966507,1.47652192,92.598,92.492,113.0]
[1645863966711,16.2182,92.58,92.5,16.216]
[1645863966908,46.84121864,92.597,92.501,3.04518332]
[1645863967109,48.5234,92.619,92.501,3.04518332]
[1645863967307,48.5234,92.619,92.494,6.80581496]
[1645863967514,48.5234,92.619,92.494,111.78381496]
[1645863967709,15.55,92.64,92.496,109.3]
[1645863967908,16.2101,92.63,92.512,2.44143221]
[1645863968111,16.2101,92.63,92.513,4.321]
[1645863968320,51.29507805,92.629,92.516,3.01131169]
[1645863968511,51.29507805,92.629,92.521,109.3]
[1645863968713,51.29507805,92.629,92.522,2.68519014]
[1645863968910,51.29507805,92.629,92.541,50.69041222]
[1645863969110,51.29507805,92.629,92.542,6.69769868]
[1645863969309,51.29507805,92.629,92.542,2.37769868]
[1645863969532,51.29507805,92.629,92.542,6.69769868]
[1645863969727,51.29507805,92.629,92.542,2.37769868]
[1645863970528,51.29507805,92.629,92.55,16.2068]
[1645863970729,51.29507805,92.629,92.551,2.60108459]
[1645863973733,53.81920709,92.629,92.541,47.93260891]
[1645863974131,65.43,92.628,92.541,47.93260891]
[1645863974432,4.3418285,92.627,92.541,47.93260891]
[1645863974632,65.43,92.626,92.531,113.0]
[1645863974832,1.35938734,92.618,92.494,113.0]
[1645863975034,1.56327744,92.608,92.494,113.0]
[1645863975234,4.321,92.607,92.494,113.0]
[1645863975632,174.73,92.605,92.495,54.99906879]
[1645863975838,174.73,92.603,92.495,54.99906879]
[1645863976036,16.2208,92.57,92.495,54.99906879]
[1645863976234,34.11240873,92.569,92.495,54.99906879]
[1645863976640,1.81742032,92.567,92.47,16.2206]
[1645863977234,34.11240873,92.569,92.471,2.27523506]
[1645863977635,34.11240873,92.569,92.48,16.2185]
[1645863977837,34.11240873,92.569,92.481,2.64804314]
[1645863978034,34.11240873,92.569,92.472,60.22157335]
[1645863978236,34.11240873,92.569,92.473,2.91053724]
[1645863979336,35.90192562,92.569,92.472,60.22157335]
[1645863979735,34.11240873,92.569,92.473,112.02163325]
[1645863979935,34.11240873,92.569,92.474,116.21783758]
[1645863980138,34.11240873,92.569,92.475,2.94216314]
[1645863980445,34.11240873,92.569,92.476,4.323]
[1645863980636,34.11240873,92.569,92.48,16.2195]
[1645863980838,1.62770402,92.568,92.48,16.2195]
[1645863982041,67.05770402,92.568,92.48,16.2195]
[1645863982237,67.05770402,92.568,92.472,60.22157335]
[1645863982238,65.43,92.559,92.472,60.22157335]
[1645863982438,65.43,92.557,92.472,60.22157335]
[1645863982640,66.84429383,92.557,92.441,4.323]
[1645863982839,65.43,92.555,92.437,2.80994475]
[1645863983041,1.69217967,92.554,92.437,2.80994475]
[1645863983239,65.43,92.539,92.44,16.2252]
[1645863983439,65.43,92.535,92.44,16.2252]
[1645863983639,65.43,92.535,92.441,49.09624213]
[1645863983840,1.57201147,92.534,92.441,49.09624213]
[1645863984138,4.09614051,92.534,92.441,49.09624213]
[1645863985138,4.09614051,92.534,92.428,23.255]
[1645863985139,2.52412904,92.533,92.428,23.255]
[1645863985343,1.4735033,92.528,92.428,23.255]
[1645863985539,4.325,92.527,92.428,23.255]
[1645863985745,174.73,92.526,92.404,23.4532]
[1645863985942,174.73,92.524,92.404,23.4532]
[1645863986142,174.73,92.509,92.405,55.98154847]
[1645863986341,65.43,92.499,92.405,55.98154847]
[1645863986538,1.35925816,92.498,92.405,55.98154847]
[1645863986738,3.8833872,92.498,92.405,55.98154847]
[1645863986938,3.8833872,92.498,92.475,0.395489]
[1645863987340,2.52412904,92.497,92.475,0.395489]
[1645863987539,65.43,92.495,92.41,16.2318]
[1645863987739,1.59910034,92.494,92.41,16.2318]
[1645863987940,4.12322938,92.494,92.405,55.98154847]
[1645863988138,2.52412904,92.494,92.405,55.98154847]
[1645863988539,44.17687147,92.493,92.405,55.98154847]
[1645863988740,1.62873268,92.492,92.405,55.98154847]
[1645863989741,67.05873268,92.492,92.405,55.98154847]
[1645863989943,4.06606661,92.491,92.405,55.98154847]
[1645863991851,44.17687147,92.493,92.406,3.04137371]
[1645863992243,44.17687147,92.493,92.407,2.86292427]
[1645863992443,44.17687147,92.493,92.407,2.36292427]
[1645863992644,4.325,92.53,92.408,4.325]
[1645863992843,2.52412904,92.527,92.41,18.8269568]
[1645863993043,174.73,92.526,92.411,2.30939688]
[1645863993242,1.58292865,92.525,92.411,2.30939688]
[1645863993445,1.58292865,92.525,92.412,2.86292427]
[1645863993645,1.58292865,92.525,92.413,4.325]
[1645863993646,53.04823066,92.524,92.413,4.325]
[1645863993943,65.43,92.515,92.42,16.23]
[1645863994144,1.60319386,92.514,92.421,4.96645375]
[1645863994543,4.325,92.513,92.421,4.96645375]
[1645863994743,65.43,92.512,92.421,4.96645375]
[1645863995043,1.8651556,92.511,92.421,4.96645375]
[1645863995246,32.35376712,92.51,92.421,4.96645375]
[1645863995545,1.72130615,92.509,92.421,4.96645375]
[1645863996051,4.24675644,92.509,92.421,4.96645375]
[1645863996352,2.52545029,92.509,92.421,114.26645375]
[1645863996544,41.53708678,92.54,92.421,114.26645375]
[1645863996545,2.52545029,92.529,92.43,15.55]
[1645863996748,4.325,92.554,92.431,3.17496264]
[1645863996944,111.06333614,92.589,92.431,65.32640151]
[1645863997144,1.38015674,92.588,92.432,17.62978816]
[1645863997444,81.6525,92.58,92.45,16.2228]
[1645863997643,176.37693081,92.576,92.452,58.75776626]
[1645863997942,1.39008527,92.573,92.453,2.37453882]
[1645863998142,1.39008527,92.573,92.454,4.323]
[1645863998342,1.39008527,92.573,92.452,55.98154847]
[1645863998343,4.323,92.572,92.452,55.98154847]
[1645863998645,174.73,92.556,92.452,55.98154847]
[1645863998844,65.43,92.554,92.452,55.98154847]
[1645863999046,1.42020439,92.553,92.452,55.98154847]
[1645863999243,25.25731014,92.553,92.452,55.98154847]
[1645863999444,1.50501563,92.551,92.452,55.98154847]
[1645863999644,48.85827382,92.549,92.452,55.98154847]
[1645863999844,5.82770291,92.548,92.452,55.98154847]
[1645864000250,1.50370291,92.548,92.452,55.98154847]
[1645864000446,1.86060141,92.547,92.452,55.98154847]
[1645864000646,4.324,92.546,92.452,55.98154847]
[1645864001449,48.85827382,92.549,92.452,55.98154847]
[1645864001450,48.85827382,92.549,92.46,16.2232]
[1645864003252,48.85827382,92.549,92.461,2.86292427]
[1645864003449,48.85827382,92.549,92.48,16.219]
[1645864003650,48.85827382,92.549,92.481,7.88519147]
[1645864004052,48.85827382,92.549,92.481,4.96645375]
[1645864005662,48.85827382,92.549,92.49,16.2175]
[1645864008455,4.323,92.594,92.49,16.2175]
[1645864008658,4.322,92.609,92.492,109.3]
[1645864008855,15.55,92.63,92.51,16.2129]
[1645864009157,1.55596628,92.629,92.511,46.3682]
[1645864009353,52.0739813,92.628,92.512,43.9273799]
[1645864009554,174.73,92.626,92.512,43.9273799]
[1645864009754,65.43,92.624,92.512,43.9273799]
[1645864009954,6.16514558,92.623,92.52,16.2127]
[1645864010154,6.16514558,92.623,92.521,2.38156824]
[1645864010660,1.42904647,92.621,92.52,16.2127]
[1645864010854,4.321,92.62,92.52,16.2127]
[1645864011053,65.43,92.619,92.52,16.2127]
[1645864011254,1.77464212,92.618,92.52,16.2127]
[1645864011656,2.52545029,92.617,92.52,16.2127]
[1645864012056,39.05357142,92.614,92.52,16.2127]
[1645864012256,1.39897163,92.613,92.52,16.2127]
[1645864012658,65.43,92.612,92.52,16.2127]
[1645864012959,25.61520175,92.611,92.512,43.9273799]
[1645864013156,69.751,92.61,92.512,43.9273799]
[1645864013356,1.8633206,92.609,92.512,43.9273799]
[1645864013757,65.43,92.608,92.512,43.9273799]
[1645864013956,65.43,92.606,92.512,43.9273799]
[1645864014161,5.78547749,92.605,92.521,0.395489]
[1645864014357,1.81140494,92.604,92.521,0.395489]
[1645864014557,4.321,92.603,92.521,0.395489]
[1645864014761,4.33685523,92.604,92.521,0.395489]
[1645864014958,2.52545029,92.602,92.521,0.395489]
[1645864019391,2.52545029,92.62,92.521,0.395489]
[1645864019586,2.52545029,92.62,92.522,2.86292427]
[1645864020588,2.52545029,92.62,92.53,16.2107]
[1645864020788,2.52545029,92.62,92.531,19.90002666]
[1645864020989,2.52545029,92.62,92.532,3.10058525]
[1645864021397,65.43,92.612,92.532,3.10058525]
[1645864021594,65.43,92.606,92.521,0.395489]
[1645864021792,65.43,92.596,92.521,0.395489]
[1645864021993,109.3,92.587,92.521,0.395489]
[1645864022190,65.43,92.576,92.521,0.395489]
[1645864022391,109.3,92.569,92.462,65.23136186]
[1645864022588,65.43,92.554,92.462,4.323]
[1645864022788,65.43,92.546,92.462,4.323]
[1645864022988,1.72361647,92.545,92.462,4.323]
[1645864023189,6.84945029,92.553,92.462,4.323]
[1645864023389,2.52545029,92.545,92.462,4.323]
[1645864023590,40.2757867,92.544,92.463,52.19822704]
[1645864023788,40.2757867,92.544,92.462,4.323]
[1645864023789,66.7958758,92.543,92.462,4.323]
[1645864023989,109.3,92.538,92.462,4.323]
[1645864024189,1.51962248,92.542,92.462,4.323]
[1645864024190,1.60155374,92.536,92.462,4.323]
[1645864024592,1.60155374,92.536,92.43,16.2273]
[1645864024789,2.52545029,92.535,92.431,54.09366636]
[1645864025589,65.43,92.527,92.431,54.09366636]
[1645864025792,1.80007172,92.526,92.431,54.09366636]
[1645864025994,4.32552201,92.526,92.431,54.09366636]
[1645864026193,2.52545029,92.525,92.431,54.09366636]
[1645864027595,174.73,92.519,92.405,22.978]
[1645864027796,1.4008036,92.518,92.405,22.978]
[1645864027996,3.92475113,92.518,92.405,22.978]
[1645864028195,2.52394753,92.517,92.405,22.978]
[1645864028596,4.325,92.516,92.406,43.60048649]
[1645864028798,65.43,92.499,92.406,43.60048649]
[1645864029000,65.43,92.497,92.406,43.60048649]
[1645864029196,65.43,92.495,92.406,43.60048649]
[1645864029395,1.36803436,92.494,92.406,43.60048649]
[1645864029800,2.52394753,92.493,92.406,43.60048649]
[1645864029997,4.325,92.496,92.407,2.54061616]
[1645864030199,4.325,92.497,92.407,2.54061616]
[1645864030600,4.325,92.497,92.431,0.395489]
[1645864030801,67.1016869,92.497,92.431,0.395489]
[1645864031001,4.34359437,92.496,92.431,0.395489]
[1645864031201,109.3,92.488,92.431,0.395489]
[1645864031500,65.43,92.477,92.431,0.395489]
[1645864031700,5.83871471,92.482,92.431,0.395489]
[1645864031900,44.73072208,92.483,92.431,0.395489]
[1645864035505,65.43,92.482,92.431,0.395489]
[1645864035707,2.52394753,92.482,92.431,0.395489]
[1645864035906,44.73072208,92.483,92.431,0.395489]
[1645864039208,1.61509783,92.482,92.431,0.395489]
[1645864041312,110.92729746,92.479,92.38,16.2356]
[1645864041611,1.55552721,92.475,92.38,16.2356]
[1645864042110,2.52394753,92.474,92.381,58.21249211]
[1645864042712,65.43,92.471,92.364,13.6793146]
[1645864042913,1.86320838,92.47,92.378,16.4205]
[1645864043112,4.38715591,92.47,92.378,16.4205]
[1645864043312,2.52394753,92.469,92.378,16.4205]
[1645864043713,39.8802977,92.468,92.379,55.85609125]
[1645864044712,39.8802977,92.468,92.38,16.2372]
[1645864046215,39.8802977,92.468,92.381,2.6363549]
[1645864047421,39.8802977,92.468,92.39,16.2353]
[1645864047622,39.8802977,92.468,92.401,3.40383483]
[1645864047819,4.327,92.529,92.41,15.55]
[1645864048019,4.327,92.529,92.411,46.8521]
[1645864048220,48.98897994,92.539,92.412,2.50634738]
[1645864048419,48.98897994,92.539,92.412,19.04858625]
[1645864048619,48.98897994,92.539,92.412,16.54223887]
[1645864048821,51.01147291,92.538,92.413,16.54223887]
[1645864049022,51.01147291,92.538,92.414,2.5526394]
[1645864049221,51.01147291,92.538,92.42,16.226]
[1645864049422,51.01147291,92.538,92.421,53.84603321]
[1645864049623,51.01147291,92.538,92.422,2.28398915]
[1645864050023,51.01147291,92.538,92.422,16.54223887]
[1645864050226,51.01147291,92.538,92.423,40.48963887]
[1645864050426,51.01147291,92.538,92.424,2.86465315]
[1645864050625,51.01147291,92.538,92.424,5.72757742]
[1645864050833,51.01147291,92.538,92.425,2.86292427]
[1645864052542,51.01147291,92.538,92.426,109.55]
[1645864052743,51.01147291,92.538,92.47,16.2192]
[1645864052942,51.01147291,92.538,92.471,52.7724083]
[1645864053142,51.01147291,92.538,92.48,15.55]
[1645864053442,51.01147291,92.538,92.481,2.71526148]
[1645864053841,51.01147291,92.538,92.481,5.57818575]
[1645864054041,4.323,92.594,92.481,5.57818575]
[1645864054042,4.323,92.594,92.491,109.3]
[1645864054241,23.8731,92.609,92.492,0.25]
[1645864054442,23.8731,92.609,92.492,3.11292427]
[1645864054642,23.8731,92.609,92.493,112.16292427]
[1645864054843,23.8731,92.609,92.494,2.90288746]
[1645864055045,51.22960672,92.608,92.495,118.26657192]
[1645864055346,51.22960672,92.608,92.511,55.57918149]
[1645864055543,51.22960672,92.608,92.512,3.08465799]
[1645864055743,51.22960672,92.608,92.51,15.55]
[1645864055744,69.8247722,92.607,92.51,15.55]
[1645864055943,65.43,92.605,92.497,2.85747735]
[1645864056144,1.71329326,92.604,92.497,2.85747735]
[1645864056345,4.321,92.603,92.497,2.85747735]
[1645864056744,6.84494753,92.603,92.5,16.2147]
[1645864056944,25.66526764,92.602,92.5,16.2147]
[1645864057144,25.66526764,92.602,92.501,3.0518655]
[1645864057344,29.33519556,92.601,92.501,3.0518655]
[1645864057744,2.53203648,92.6,92.501,3.0518655]
[1645864057948,65.43,92.598,92.5,16.2147]
[1645864058145,6.11163018,92.597,92.496,23.6762]
[1645864058347,1.82396631,92.595,92.496,23.6762]
[1645864058547,4.322,92.594,92.496,23.6762]
[1645864058945,66.88201773,92.592,92.496,23.6762]
[1645864059150,1.57693071,92.591,92.496,23.6762]
[1645864059444,65.43,92.589,92.496,23.6762]
[1645864059645,65.43,92.587,92.496,23.6762]
[1645864059845,65.43,92.585,92.496,23.6762]
[1645864060044,1.62496042,92.584,92.496,23.6762]
[1645864060447,6.85403648,92.583,92.496,23.6762]
[1645864060848,2.53203648,92.582,92.496,23.6762]
[1645864062548,2.53203648,92.582,92.496,35.86657385]
[1645864063148,2.53203648,92.582,92.497,2.41703372]
[1645864063550,2.53203648,92.582,92.496,12.19037385]
[1645864064748,2.53203648,92.596,92.5,16.2161]
[1645864064949,2.53203648,92.596,92.501,2.7033469]
[1645864065148,1.46822671,92.599,92.501,2.7033469]
[1645864065348,112.928,92.595,92.5,15.55]
[1645864065551,4.0813818,92.592,92.5,15.55]
[1645864065748,4.0813818,92.592,92.496,12.19037385]
[1645864065950,2.53203648,92.591,92.496,12.19037385]
[1645864066554,65.43,92.589,92.496,12.19037385]
[1645864066752,2.53203648,92.591,92.496,12.19037385]
[1645864066956,47.498,92.595,92.5,15.55]
[1645864067151,47.498,92.595,92.501,2.44421094]
[1645864068156,47.498,92.595,92.51,16.2135]
[1645864068355,47.498,92.595,92.511,49.54860637]
[1645864068555,2.53203648,92.613,92.512,112.16668995]
[1645864068758,45.70495908,92.628,92.513,3.00324674]
[1645864068957,23.14132011,92.63,92.515,2.52263741]
[1645864069157,2.53203648,92.641,92.53,15.55]
[1645864069356,2.53203648,92.641,92.55,16.2059]
[1645864069558,2.53203648,92.641,92.55,31.7559]
[1645864069760,44.80986712,92.64,92.551,12.19037385]
[1645864070159,2.53203648,92.639,92.551,12.19037385]
[1645864071864,69.44661861,92.639,92.551,12.19037385]
[1645864072063,1.4551801,92.638,92.551,12.19037385]
[1645864072264,3.98738946,92.638,92.551,12.19037385]
[1645864072462,65.43,92.636,92.551,12.19037385]
[1645864072663,1.83240294,92.635,92.551,12.19037385]
[1645864072862,2.53220936,92.635,92.551,12.19037385]
[1645864075569,2.53220936,92.635,92.55,16.2059]
[1645864076671,2.53220936,92.635,92.55,62.99184916]
[1645864077369,2.53220936,92.635,92.55,16.2059]
[1645864079479,67.2920262,92.64,92.55,16.2059]
[1645864080572,44.80986712,92.64,92.551,114.65430325]
[1645864080776,23.14132011,92.669,92.57,16.2016]
[1645864080973,23.14132011,92.669,92.58,15.55]
[1645864081175,47.3345,92.689,92.581,2.33703186]
[1645864081379,47.3345,92.689,92.582,4.317]
[1645864081575,47.3345,92.689,92.581,5.19995613]
[1645864081777,42.94776755,92.666,92.583,2.86292427]
[1645864082174,42.94776755,92.666,92.584,4.317]
[1645864082672,42.94776755,92.666,92.601,53.24938465]
[1645864083074,42.94776755,92.666,92.602,2.41790346]
[1645864083876,42.94776755,92.666,92.601,53.24938465]
[1645864084476,42.94776755,92.666,92.6,15.55]
[1645864084675,42.94776755,92.666,92.59,16.1988]
[1645864085076,42.94776755,92.666,92.591,2.30210371]
[1645864085477,42.94776755,92.666,92.601,53.56043807]
[1645864086277,42.94776755,92.666,92.6,16.1976]
[1645864086678,65.43,92.665,92.58,16.2009]
[1645864086879,65.43,92.659,92.552,22.7968]
[1645864087079,1.82748388,92.658,92.552,22.7968]
[1645864087282,65.43,92.656,92.552,22.7968]
[1645864087483,65.43,92.654,92.552,22.7968]
[1645864087680,174.73,92.649,92.552,22.7968]
[1645864087884,15.55,92.65,92.541,24.7369]
[1645864087885,65.43,92.639,92.541,24.7369]
[1645864088082,65.43,92.637,92.541,24.7369]
[1645864088296,65.43,92.635,92.541,24.7369]
[1645864088483,65.43,92.633,92.541,24.7369]
[1645864088679,1.50707551,92.632,92.541,24.7369]
[1645864089082,4.03914931,92.632,92.541,24.7369]
[1645864090280,4.32,92.631,92.541,24.7369]
[1645864090681,2.5320738,92.63,92.541,24.7369]
[1645864090985,6.03870794,92.629,92.541,24.7369]
[1645864091785,1.71870794,92.629,92.541,24.7369]
[1645864092385,1.71870794,92.629,92.55,16.2075]
[1645864092583,1.71870794,92.629,92.551,11.82676007]